{"text_format":"1","workbook":"xlsx","n_sheets":6,"sheets":["Accueil","Suivi du stock","Feuil2","Consommation mensuelle","Commande","Objectifs"],"not_rendered":{"charts":0,"images":6,"macros":1,"external_links":0,"defined_names":5,"comments":0,"pivot_tables":0},"unopened":[],"bounds":{"document_bytes":16777216,"sheet_cells":100000,"rows_first":2000,"rows_last":500,"rows_between":2000,"halvings":0,"cell_chars":16384,"cell_head_chars":4096},"cells_cut":0,"cells_raw":0,"read":"whole","date_system":"1900"}

{"sheet":"Accueil","index":0,"n_rows":67,"n_cols":9,"rows_kept":67,"cut":false,"hidden":false,"merged":[]}
["Association de Lutte Contre le Sida"]
["Gestion des préservatifs",null,null,null,"Comment utiliser le fichier"]
[]
["Etape 1:"]
["Sur la feuille \"Suivi du stock\" renseigner les cases correspondant à la section et l'année"]
["Un menu déroulant vous aide pour le choix de la section et de l'année"]
[]
[null,null,null,null,null,null,"Codes des couleurs:"]
[]
[null,null,null,null,null,null,null,null,"Cases de rentrées des données "]
[null,null,null,null,null,null,null,null,"Cases de rentrées des données "]
[null,null,null,null,null,null,null,null,"Cases de rentrées des données "]
[]
[null,null,null,null,null,null,null,null,"Cases générées automatiquement (aucune saisie)"]
[null,null,null,null,null,null,null,null,"Cases générées automatiquement (aucune saisie)"]
[]
["Etape 2:"]
["Sur la feuille objectifs,"]
["Rentrer les objectifs en matière des contacts avec la population cible pour l'année en cours, si vous voulez avoir la commande du premier trimestre"]
["de l'année prochaine, il faut également renter les contacts prévus pour ce trimestre."]
[]
[]
["Etape 3:"]
["Enter la date au format \"JJ/MM/AAAA\" sans espace (toute date erronée va fausser les calculs); entrer les entrées et les sorties en chiffre également sans espace."]
["Pour les provenances des entrées et les destinations des sorties, un menu déroulant vous est proposé."]
[]
[]
[]
[]
[]
[]
[]
[]
["Etape 4:"]
["Pour ajouter une ligne, selectionner la dernière cellule en dessus de la ligne des totaux de la colonne \"Observations\" et tapez la touche \"Tabulation\""]
[]
[]
[]
[]
[]
[]
[]
[]
[]
[]
[]
[]
["Etape 5:","Elaboration de la commande trimestrielle, feuille \"Commande\""]
["Il vous suffit de choisir le timestre pour lequel vous allez faire la commande et la consommation du précédent trimestre est générée automatiquement"]
["Vous entrez le trimestre 5 quand vous voulez faire la commande du 1er trimestre de l'année prochaine."]
[]
[]
[]
[]
[]
[]
["La quantité à commander est calculée en fonction de votre stock et vous permet un stock de 4 mois (3 mois et un mois de sécurité)"]
[]
["Très important:"]
["Si des préservatifs ont été données à l'un ou l'autre des intervenants des projets et n'ont pas été distribués à la fin de la période vous les rentrer dans le fichier en négatif"]
["Par exemple le projet PPX a un reliquat de 100 préservatifs à la fin du mois janvier, vous saisisser la date, la sortie en négatif et le projet "]
[]
[]
[]
[]
[]
["Pour saisir un nombre négatif X, tapez =0-X ou bien tapez le nombre en premier et puis le signe \"-\" et validez par la touche entrée."]

{"sheet":"Suivi du stock","index":1,"n_rows":11,"n_cols":9,"rows_kept":11,"cut":false,"hidden":false,"merged":[]}
["Association de Lutte Contre le Sida"]
["Section :"]
["Année :"]
[null,null,"Fichier de gestion et de suivi du stock des préservatifs"]
[]
[]
["Date","Entrées","Provenance des entrées","Sorties","Destination des sorties","Mois","Trimestre","Section","Observations"]
[null,null,null,null,null,{"$f":"IF(A8<>\"\",PROPER(TEXT(\"1/\"&MONTH(A8),\"mmmm\")),\"\")","v":""},{"$f":"IF(A8<>\"\",\"Trimestre \"&INT((MONTH(A8)+2)/3),\"\")","v":""},{"$f":"IF($B$2<>\"\",$B$2,\"\")","v":""}]
[null,null,null,null,null,"","",{"$f":"IF($B$2<>\"\",$B$2,\"\")","v":""}]
[null,null,null,null,null,{"$f":"IF(A10<>\"\",PROPER(TEXT(\"1/\"&MONTH(A10),\"mmmm\")),\"\")","v":""},{"$f":"IF(A10<>\"\",\"Trimestre \"&INT((MONTH(A10)+2)/3),\"\")","v":""},{"$f":"IF($B$2<>\"\",$B$2,\"\")","v":""}]
["Total",{"$f":"SUBTOTAL(109,[Entrées])","v":0},null,{"$f":"SUBTOTAL(109,[Sorties])","v":0},null,null,null,{"$f":"SUBTOTAL(103,[Section])","v":3}]

{"sheet":"Feuil2","index":2,"n_rows":24,"n_cols":11,"rows_kept":24,"cut":false,"hidden":true,"merged":[]}
[]
[]
[null,null,null,null,null,null,null,null,null,"Trimestre",4]
[null,null,null,null,null,null,null,null,null,null,{"$f":"Commande!$E$10*3-2","v":1}]
["Provenance des entrées","Destination des sorties",null,"Section","Année"]
["ALCS_Siège","PPF",null,"Agadir ",2010,null,"Janvier",1,"Trimestre 1"]
["Section_Siège","PPM",null,"Beni Mellal",2011,null,"Février",1,"Trimestre 1"]
["Délégation de la santé","PPO",null,"Casablanca",2012,null,"Mars",1,"Trimestre 1"]
["Direction de la santé","PPR",null,"El Jadida",2013,null,"Avril",2,"Trimestre 2"]
["DELM_PNLS","PPMig",null,"Essaouira",2014,null,"Mai",2,"Trimestre 2"]
["Autre","UDI",null,"Fes",2015,null,"Juin",2,"Trimestre 2"]
[null,"PVVIH",null,"Guelmim",2016,null,"Juillet",3,"Trimestre 3"]
[null,"Jeunes",null,"Laayoune",2017,null,"Août",3,"Trimestre 3"]
[null,"GP",null,"Larache",2018,null,"Septembre",3,"Trimestre 3"]
[null,"Autres",null,"Marrakech",2019,null,"Octobre",4,"Trimestre 4"]
[null,null,null,"Meknes",2020,null,"Novembre",4,"Trimestre 4"]
[null,null,null,"Nador",null,null,"Décembre",4,"Trimestre 4"]
[null,null,null,"Oujda"]
[null,null,null,"Rabat","Trimestre"]
[null,null,null,"Safi",2]
[null,null,null,"Tanger",3,null,null,null,{"$f":"INDEX(G6:H17,$K$4,1)","v":"Janvier"}]
[null,null,null,"Taroudant",4,null,null,null,{"$f":"INDEX(G7:H18,$K$4,1)","v":"Février"}]
[null,null,null,"Tetouan",5,null,null,null,"Mars"]
[null,null,null,"Tiznit"]

{"sheet":"Consommation mensuelle","index":3,"n_rows":28,"n_cols":12,"rows_kept":28,"cut":false,"hidden":false,"merged":[[22,1,22,2]]}
[]
["Section",{"$f":"IF('Suivi du stock'!B2<>\"\",'Suivi du stock'!B2,\"\")","v":""}]
["Année",{"$f":"IF('Suivi du stock'!B3<>\"\",'Suivi du stock'!B3,\"\")","v":""}]
[]
[]
[null,null,null,"Consommation mensuelle en préservatifs :"]
[]
[null,"PPF","PPM","PPO","PPR","PPMig","UDI","PVVIH","Jeunes","GP","Autres","Total"]
["Janvier",{"$f":"SUMIFS(Tableau1[Sorties],Tableau1[Mois],'Consommation mensuelle'!$A9,Tableau1[Destination des sorties],'Consommation mensuelle'!B$8)","v":0},{"$f":"SUMIFS(Tableau1[Sorties],Tableau1[Mois],'Consommation mensuelle'!$A9,Tableau1[Destination des sorties],'Consommation mensuelle'!C$8)","v":0},{"$f":"SUMIFS(Tableau1[Sorties],Tableau1[Mois],'Consommation mensuelle'!$A9,Tableau1[Destination des sorties],'Consommation mensuelle'!D$8)","v":0},{"$f":"SUMIFS(Tableau1[Sorties],Tableau1[Mois],'Consommation mensuelle'!$A9,Tableau1[Destination des sorties],'Consommation mensuelle'!E$8)","v":0},{"$f":"SUMIFS(Tableau1[Sorties],Tableau1[Mois],'Consommation mensuelle'!$A9,Tableau1[Destination des sorties],'Consommation mensuelle'!F$8)","v":0},{"$f":"SUMIFS(Tableau1[Sorties],Tableau1[Mois],'Consommation mensuelle'!$A9,Tableau1[Destination des sorties],'Consommation mensuelle'!G$8)","v":0},{"$f":"SUMIFS(Tableau1[Sorties],Tableau1[Mois],'Consommation mensuelle'!$A9,Tableau1[Destination des sorties],'Consommation mensuelle'!H$8)","v":0},{"$f":"SUMIFS(Tableau1[Sorties],Tableau1[Mois],'Consommation mensuelle'!$A9,Tableau1[Destination des sorties],'Consommation mensuelle'!I$8)","v":0},{"$f":"SUMIFS(Tableau1[Sorties],Tableau1[Mois],'Consommation mensuelle'!$A9,Tableau1[Destination des sorties],'Consommation mensuelle'!J$8)","v":0},{"$f":"SUMIFS(Tableau1[Sorties],Tableau1[Mois],'Consommation mensuelle'!$A9,Tableau1[Destination des sorties],'Consommation mensuelle'!K$8)","v":0},{"$f":"SUM(B9:K9)","v":0}]
["Février",{"$f":"SUMIFS(Tableau1[Sorties],Tableau1[Mois],'Consommation mensuelle'!$A10,Tableau1[Destination des sorties],'Consommation mensuelle'!B$8)","v":0},{"$f":"SUMIFS(Tableau1[Sorties],Tableau1[Mois],'Consommation mensuelle'!$A10,Tableau1[Destination des sorties],'Consommation mensuelle'!C$8)","v":0},{"$f":"SUMIFS(Tableau1[Sorties],Tableau1[Mois],'Consommation mensuelle'!$A10,Tableau1[Destination des sorties],'Consommation mensuelle'!D$8)","v":0},{"$f":"SUMIFS(Tableau1[Sorties],Tableau1[Mois],'Consommation mensuelle'!$A10,Tableau1[Destination des sorties],'Consommation mensuelle'!E$8)","v":0},{"$f":"SUMIFS(Tableau1[Sorties],Tableau1[Mois],'Consommation mensuelle'!$A10,Tableau1[Destination des sorties],'Consommation mensuelle'!F$8)","v":0},{"$f":"SUMIFS(Tableau1[Sorties],Tableau1[Mois],'Consommation mensuelle'!$A10,Tableau1[Destination des sorties],'Consommation mensuelle'!G$8)","v":0},{"$f":"SUMIFS(Tableau1[Sorties],Tableau1[Mois],'Consommation mensuelle'!$A10,Tableau1[Destination des sorties],'Consommation mensuelle'!H$8)","v":0},{"$f":"SUMIFS(Tableau1[Sorties],Tableau1[Mois],'Consommation mensuelle'!$A10,Tableau1[Destination des sorties],'Consommation mensuelle'!I$8)","v":0},{"$f":"SUMIFS(Tableau1[Sorties],Tableau1[Mois],'Consommation mensuelle'!$A10,Tableau1[Destination des sorties],'Consommation mensuelle'!J$8)","v":0},{"$f":"SUMIFS(Tableau1[Sorties],Tableau1[Mois],'Consommation mensuelle'!$A10,Tableau1[Destination des sorties],'Consommation mensuelle'!K$8)","v":0},{"$f":"SUM(B10:K10)","v":0}]
["Mars",{"$f":"SUMIFS(Tableau1[Sorties],Tableau1[Mois],'Consommation mensuelle'!$A11,Tableau1[Destination des sorties],'Consommation mensuelle'!B$8)","v":0},{"$f":"SUMIFS(Tableau1[Sorties],Tableau1[Mois],'Consommation mensuelle'!$A11,Tableau1[Destination des sorties],'Consommation mensuelle'!C$8)","v":0},{"$f":"SUMIFS(Tableau1[Sorties],Tableau1[Mois],'Consommation mensuelle'!$A11,Tableau1[Destination des sorties],'Consommation mensuelle'!D$8)","v":0},{"$f":"SUMIFS(Tableau1[Sorties],Tableau1[Mois],'Consommation mensuelle'!$A11,Tableau1[Destination des sorties],'Consommation mensuelle'!E$8)","v":0},{"$f":"SUMIFS(Tableau1[Sorties],Tableau1[Mois],'Consommation mensuelle'!$A11,Tableau1[Destination des sorties],'Consommation mensuelle'!F$8)","v":0},{"$f":"SUMIFS(Tableau1[Sorties],Tableau1[Mois],'Consommation mensuelle'!$A11,Tableau1[Destination des sorties],'Consommation mensuelle'!G$8)","v":0},{"$f":"SUMIFS(Tableau1[Sorties],Tableau1[Mois],'Consommation mensuelle'!$A11,Tableau1[Destination des sorties],'Consommation mensuelle'!H$8)","v":0},{"$f":"SUMIFS(Tableau1[Sorties],Tableau1[Mois],'Consommation mensuelle'!$A11,Tableau1[Destination des sorties],'Consommation mensuelle'!I$8)","v":0},{"$f":"SUMIFS(Tableau1[Sorties],Tableau1[Mois],'Consommation mensuelle'!$A11,Tableau1[Destination des sorties],'Consommation mensuelle'!J$8)","v":0},{"$f":"SUMIFS(Tableau1[Sorties],Tableau1[Mois],'Consommation mensuelle'!$A11,Tableau1[Destination des sorties],'Consommation mensuelle'!K$8)","v":0},0]
["Avril",{"$f":"SUMIFS(Tableau1[Sorties],Tableau1[Mois],'Consommation mensuelle'!$A12,Tableau1[Destination des sorties],'Consommation mensuelle'!B$8)","v":0},{"$f":"SUMIFS(Tableau1[Sorties],Tableau1[Mois],'Consommation mensuelle'!$A12,Tableau1[Destination des sorties],'Consommation mensuelle'!C$8)","v":0},{"$f":"SUMIFS(Tableau1[Sorties],Tableau1[Mois],'Consommation mensuelle'!$A12,Tableau1[Destination des sorties],'Consommation mensuelle'!D$8)","v":0},{"$f":"SUMIFS(Tableau1[Sorties],Tableau1[Mois],'Consommation mensuelle'!$A12,Tableau1[Destination des sorties],'Consommation mensuelle'!E$8)","v":0},{"$f":"SUMIFS(Tableau1[Sorties],Tableau1[Mois],'Consommation mensuelle'!$A12,Tableau1[Destination des sorties],'Consommation mensuelle'!F$8)","v":0},{"$f":"SUMIFS(Tableau1[Sorties],Tableau1[Mois],'Consommation mensuelle'!$A12,Tableau1[Destination des sorties],'Consommation mensuelle'!G$8)","v":0},{"$f":"SUMIFS(Tableau1[Sorties],Tableau1[Mois],'Consommation mensuelle'!$A12,Tableau1[Destination des sorties],'Consommation mensuelle'!H$8)","v":0},{"$f":"SUMIFS(Tableau1[Sorties],Tableau1[Mois],'Consommation mensuelle'!$A12,Tableau1[Destination des sorties],'Consommation mensuelle'!I$8)","v":0},{"$f":"SUMIFS(Tableau1[Sorties],Tableau1[Mois],'Consommation mensuelle'!$A12,Tableau1[Destination des sorties],'Consommation mensuelle'!J$8)","v":0},{"$f":"SUMIFS(Tableau1[Sorties],Tableau1[Mois],'Consommation mensuelle'!$A12,Tableau1[Destination des sorties],'Consommation mensuelle'!K$8)","v":0},0]
["Mai",{"$f":"SUMIFS(Tableau1[Sorties],Tableau1[Mois],'Consommation mensuelle'!$A13,Tableau1[Destination des sorties],'Consommation mensuelle'!B$8)","v":0},{"$f":"SUMIFS(Tableau1[Sorties],Tableau1[Mois],'Consommation mensuelle'!$A13,Tableau1[Destination des sorties],'Consommation mensuelle'!C$8)","v":0},{"$f":"SUMIFS(Tableau1[Sorties],Tableau1[Mois],'Consommation mensuelle'!$A13,Tableau1[Destination des sorties],'Consommation mensuelle'!D$8)","v":0},{"$f":"SUMIFS(Tableau1[Sorties],Tableau1[Mois],'Consommation mensuelle'!$A13,Tableau1[Destination des sorties],'Consommation mensuelle'!E$8)","v":0},{"$f":"SUMIFS(Tableau1[Sorties],Tableau1[Mois],'Consommation mensuelle'!$A13,Tableau1[Destination des sorties],'Consommation mensuelle'!F$8)","v":0},{"$f":"SUMIFS(Tableau1[Sorties],Tableau1[Mois],'Consommation mensuelle'!$A13,Tableau1[Destination des sorties],'Consommation mensuelle'!G$8)","v":0},{"$f":"SUMIFS(Tableau1[Sorties],Tableau1[Mois],'Consommation mensuelle'!$A13,Tableau1[Destination des sorties],'Consommation mensuelle'!H$8)","v":0},{"$f":"SUMIFS(Tableau1[Sorties],Tableau1[Mois],'Consommation mensuelle'!$A13,Tableau1[Destination des sorties],'Consommation mensuelle'!I$8)","v":0},{"$f":"SUMIFS(Tableau1[Sorties],Tableau1[Mois],'Consommation mensuelle'!$A13,Tableau1[Destination des sorties],'Consommation mensuelle'!J$8)","v":0},{"$f":"SUMIFS(Tableau1[Sorties],Tableau1[Mois],'Consommation mensuelle'!$A13,Tableau1[Destination des sorties],'Consommation mensuelle'!K$8)","v":0},0]
["Juin",{"$f":"SUMIFS(Tableau1[Sorties],Tableau1[Mois],'Consommation mensuelle'!$A14,Tableau1[Destination des sorties],'Consommation mensuelle'!B$8)","v":0},{"$f":"SUMIFS(Tableau1[Sorties],Tableau1[Mois],'Consommation mensuelle'!$A14,Tableau1[Destination des sorties],'Consommation mensuelle'!C$8)","v":0},{"$f":"SUMIFS(Tableau1[Sorties],Tableau1[Mois],'Consommation mensuelle'!$A14,Tableau1[Destination des sorties],'Consommation mensuelle'!D$8)","v":0},{"$f":"SUMIFS(Tableau1[Sorties],Tableau1[Mois],'Consommation mensuelle'!$A14,Tableau1[Destination des sorties],'Consommation mensuelle'!E$8)","v":0},{"$f":"SUMIFS(Tableau1[Sorties],Tableau1[Mois],'Consommation mensuelle'!$A14,Tableau1[Destination des sorties],'Consommation mensuelle'!F$8)","v":0},{"$f":"SUMIFS(Tableau1[Sorties],Tableau1[Mois],'Consommation mensuelle'!$A14,Tableau1[Destination des sorties],'Consommation mensuelle'!G$8)","v":0},{"$f":"SUMIFS(Tableau1[Sorties],Tableau1[Mois],'Consommation mensuelle'!$A14,Tableau1[Destination des sorties],'Consommation mensuelle'!H$8)","v":0},{"$f":"SUMIFS(Tableau1[Sorties],Tableau1[Mois],'Consommation mensuelle'!$A14,Tableau1[Destination des sorties],'Consommation mensuelle'!I$8)","v":0},{"$f":"SUMIFS(Tableau1[Sorties],Tableau1[Mois],'Consommation mensuelle'!$A14,Tableau1[Destination des sorties],'Consommation mensuelle'!J$8)","v":0},{"$f":"SUMIFS(Tableau1[Sorties],Tableau1[Mois],'Consommation mensuelle'!$A14,Tableau1[Destination des sorties],'Consommation mensuelle'!K$8)","v":0},0]
["Juillet",{"$f":"SUMIFS(Tableau1[Sorties],Tableau1[Mois],'Consommation mensuelle'!$A15,Tableau1[Destination des sorties],'Consommation mensuelle'!B$8)","v":0},{"$f":"SUMIFS(Tableau1[Sorties],Tableau1[Mois],'Consommation mensuelle'!$A15,Tableau1[Destination des sorties],'Consommation mensuelle'!C$8)","v":0},{"$f":"SUMIFS(Tableau1[Sorties],Tableau1[Mois],'Consommation mensuelle'!$A15,Tableau1[Destination des sorties],'Consommation mensuelle'!D$8)","v":0},{"$f":"SUMIFS(Tableau1[Sorties],Tableau1[Mois],'Consommation mensuelle'!$A15,Tableau1[Destination des sorties],'Consommation mensuelle'!E$8)","v":0},{"$f":"SUMIFS(Tableau1[Sorties],Tableau1[Mois],'Consommation mensuelle'!$A15,Tableau1[Destination des sorties],'Consommation mensuelle'!F$8)","v":0},{"$f":"SUMIFS(Tableau1[Sorties],Tableau1[Mois],'Consommation mensuelle'!$A15,Tableau1[Destination des sorties],'Consommation mensuelle'!G$8)","v":0},{"$f":"SUMIFS(Tableau1[Sorties],Tableau1[Mois],'Consommation mensuelle'!$A15,Tableau1[Destination des sorties],'Consommation mensuelle'!H$8)","v":0},{"$f":"SUMIFS(Tableau1[Sorties],Tableau1[Mois],'Consommation mensuelle'!$A15,Tableau1[Destination des sorties],'Consommation mensuelle'!I$8)","v":0},{"$f":"SUMIFS(Tableau1[Sorties],Tableau1[Mois],'Consommation mensuelle'!$A15,Tableau1[Destination des sorties],'Consommation mensuelle'!J$8)","v":0},{"$f":"SUMIFS(Tableau1[Sorties],Tableau1[Mois],'Consommation mensuelle'!$A15,Tableau1[Destination des sorties],'Consommation mensuelle'!K$8)","v":0},0]
["Août",{"$f":"SUMIFS(Tableau1[Sorties],Tableau1[Mois],'Consommation mensuelle'!$A16,Tableau1[Destination des sorties],'Consommation mensuelle'!B$8)","v":0},{"$f":"SUMIFS(Tableau1[Sorties],Tableau1[Mois],'Consommation mensuelle'!$A16,Tableau1[Destination des sorties],'Consommation mensuelle'!C$8)","v":0},{"$f":"SUMIFS(Tableau1[Sorties],Tableau1[Mois],'Consommation mensuelle'!$A16,Tableau1[Destination des sorties],'Consommation mensuelle'!D$8)","v":0},{"$f":"SUMIFS(Tableau1[Sorties],Tableau1[Mois],'Consommation mensuelle'!$A16,Tableau1[Destination des sorties],'Consommation mensuelle'!E$8)","v":0},{"$f":"SUMIFS(Tableau1[Sorties],Tableau1[Mois],'Consommation mensuelle'!$A16,Tableau1[Destination des sorties],'Consommation mensuelle'!F$8)","v":0},{"$f":"SUMIFS(Tableau1[Sorties],Tableau1[Mois],'Consommation mensuelle'!$A16,Tableau1[Destination des sorties],'Consommation mensuelle'!G$8)","v":0},{"$f":"SUMIFS(Tableau1[Sorties],Tableau1[Mois],'Consommation mensuelle'!$A16,Tableau1[Destination des sorties],'Consommation mensuelle'!H$8)","v":0},{"$f":"SUMIFS(Tableau1[Sorties],Tableau1[Mois],'Consommation mensuelle'!$A16,Tableau1[Destination des sorties],'Consommation mensuelle'!I$8)","v":0},{"$f":"SUMIFS(Tableau1[Sorties],Tableau1[Mois],'Consommation mensuelle'!$A16,Tableau1[Destination des sorties],'Consommation mensuelle'!J$8)","v":0},{"$f":"SUMIFS(Tableau1[Sorties],Tableau1[Mois],'Consommation mensuelle'!$A16,Tableau1[Destination des sorties],'Consommation mensuelle'!K$8)","v":0},0]
["Septembre",{"$f":"SUMIFS(Tableau1[Sorties],Tableau1[Mois],'Consommation mensuelle'!$A17,Tableau1[Destination des sorties],'Consommation mensuelle'!B$8)","v":0},{"$f":"SUMIFS(Tableau1[Sorties],Tableau1[Mois],'Consommation mensuelle'!$A17,Tableau1[Destination des sorties],'Consommation mensuelle'!C$8)","v":0},{"$f":"SUMIFS(Tableau1[Sorties],Tableau1[Mois],'Consommation mensuelle'!$A17,Tableau1[Destination des sorties],'Consommation mensuelle'!D$8)","v":0},{"$f":"SUMIFS(Tableau1[Sorties],Tableau1[Mois],'Consommation mensuelle'!$A17,Tableau1[Destination des sorties],'Consommation mensuelle'!E$8)","v":0},{"$f":"SUMIFS(Tableau1[Sorties],Tableau1[Mois],'Consommation mensuelle'!$A17,Tableau1[Destination des sorties],'Consommation mensuelle'!F$8)","v":0},{"$f":"SUMIFS(Tableau1[Sorties],Tableau1[Mois],'Consommation mensuelle'!$A17,Tableau1[Destination des sorties],'Consommation mensuelle'!G$8)","v":0},{"$f":"SUMIFS(Tableau1[Sorties],Tableau1[Mois],'Consommation mensuelle'!$A17,Tableau1[Destination des sorties],'Consommation mensuelle'!H$8)","v":0},{"$f":"SUMIFS(Tableau1[Sorties],Tableau1[Mois],'Consommation mensuelle'!$A17,Tableau1[Destination des sorties],'Consommation mensuelle'!I$8)","v":0},{"$f":"SUMIFS(Tableau1[Sorties],Tableau1[Mois],'Consommation mensuelle'!$A17,Tableau1[Destination des sorties],'Consommation mensuelle'!J$8)","v":0},{"$f":"SUMIFS(Tableau1[Sorties],Tableau1[Mois],'Consommation mensuelle'!$A17,Tableau1[Destination des sorties],'Consommation mensuelle'!K$8)","v":0},0]
["Octobre",{"$f":"SUMIFS(Tableau1[Sorties],Tableau1[Mois],'Consommation mensuelle'!$A18,Tableau1[Destination des sorties],'Consommation mensuelle'!B$8)","v":0},{"$f":"SUMIFS(Tableau1[Sorties],Tableau1[Mois],'Consommation mensuelle'!$A18,Tableau1[Destination des sorties],'Consommation mensuelle'!C$8)","v":0},{"$f":"SUMIFS(Tableau1[Sorties],Tableau1[Mois],'Consommation mensuelle'!$A18,Tableau1[Destination des sorties],'Consommation mensuelle'!D$8)","v":0},{"$f":"SUMIFS(Tableau1[Sorties],Tableau1[Mois],'Consommation mensuelle'!$A18,Tableau1[Destination des sorties],'Consommation mensuelle'!E$8)","v":0},{"$f":"SUMIFS(Tableau1[Sorties],Tableau1[Mois],'Consommation mensuelle'!$A18,Tableau1[Destination des sorties],'Consommation mensuelle'!F$8)","v":0},{"$f":"SUMIFS(Tableau1[Sorties],Tableau1[Mois],'Consommation mensuelle'!$A18,Tableau1[Destination des sorties],'Consommation mensuelle'!G$8)","v":0},{"$f":"SUMIFS(Tableau1[Sorties],Tableau1[Mois],'Consommation mensuelle'!$A18,Tableau1[Destination des sorties],'Consommation mensuelle'!H$8)","v":0},{"$f":"SUMIFS(Tableau1[Sorties],Tableau1[Mois],'Consommation mensuelle'!$A18,Tableau1[Destination des sorties],'Consommation mensuelle'!I$8)","v":0},{"$f":"SUMIFS(Tableau1[Sorties],Tableau1[Mois],'Consommation mensuelle'!$A18,Tableau1[Destination des sorties],'Consommation mensuelle'!J$8)","v":0},{"$f":"SUMIFS(Tableau1[Sorties],Tableau1[Mois],'Consommation mensuelle'!$A18,Tableau1[Destination des sorties],'Consommation mensuelle'!K$8)","v":0},0]
["Novembre",{"$f":"SUMIFS(Tableau1[Sorties],Tableau1[Mois],'Consommation mensuelle'!$A19,Tableau1[Destination des sorties],'Consommation mensuelle'!B$8)","v":0},{"$f":"SUMIFS(Tableau1[Sorties],Tableau1[Mois],'Consommation mensuelle'!$A19,Tableau1[Destination des sorties],'Consommation mensuelle'!C$8)","v":0},{"$f":"SUMIFS(Tableau1[Sorties],Tableau1[Mois],'Consommation mensuelle'!$A19,Tableau1[Destination des sorties],'Consommation mensuelle'!D$8)","v":0},{"$f":"SUMIFS(Tableau1[Sorties],Tableau1[Mois],'Consommation mensuelle'!$A19,Tableau1[Destination des sorties],'Consommation mensuelle'!E$8)","v":0},{"$f":"SUMIFS(Tableau1[Sorties],Tableau1[Mois],'Consommation mensuelle'!$A19,Tableau1[Destination des sorties],'Consommation mensuelle'!F$8)","v":0},{"$f":"SUMIFS(Tableau1[Sorties],Tableau1[Mois],'Consommation mensuelle'!$A19,Tableau1[Destination des sorties],'Consommation mensuelle'!G$8)","v":0},{"$f":"SUMIFS(Tableau1[Sorties],Tableau1[Mois],'Consommation mensuelle'!$A19,Tableau1[Destination des sorties],'Consommation mensuelle'!H$8)","v":0},{"$f":"SUMIFS(Tableau1[Sorties],Tableau1[Mois],'Consommation mensuelle'!$A19,Tableau1[Destination des sorties],'Consommation mensuelle'!I$8)","v":0},{"$f":"SUMIFS(Tableau1[Sorties],Tableau1[Mois],'Consommation mensuelle'!$A19,Tableau1[Destination des sorties],'Consommation mensuelle'!J$8)","v":0},{"$f":"SUMIFS(Tableau1[Sorties],Tableau1[Mois],'Consommation mensuelle'!$A19,Tableau1[Destination des sorties],'Consommation mensuelle'!K$8)","v":0},0]
["Décembre",{"$f":"SUMIFS(Tableau1[Sorties],Tableau1[Mois],'Consommation mensuelle'!$A20,Tableau1[Destination des sorties],'Consommation mensuelle'!B$8)","v":0},{"$f":"SUMIFS(Tableau1[Sorties],Tableau1[Mois],'Consommation mensuelle'!$A20,Tableau1[Destination des sorties],'Consommation mensuelle'!C$8)","v":0},{"$f":"SUMIFS(Tableau1[Sorties],Tableau1[Mois],'Consommation mensuelle'!$A20,Tableau1[Destination des sorties],'Consommation mensuelle'!D$8)","v":0},{"$f":"SUMIFS(Tableau1[Sorties],Tableau1[Mois],'Consommation mensuelle'!$A20,Tableau1[Destination des sorties],'Consommation mensuelle'!E$8)","v":0},{"$f":"SUMIFS(Tableau1[Sorties],Tableau1[Mois],'Consommation mensuelle'!$A20,Tableau1[Destination des sorties],'Consommation mensuelle'!F$8)","v":0},{"$f":"SUMIFS(Tableau1[Sorties],Tableau1[Mois],'Consommation mensuelle'!$A20,Tableau1[Destination des sorties],'Consommation mensuelle'!G$8)","v":0},{"$f":"SUMIFS(Tableau1[Sorties],Tableau1[Mois],'Consommation mensuelle'!$A20,Tableau1[Destination des sorties],'Consommation mensuelle'!H$8)","v":0},{"$f":"SUMIFS(Tableau1[Sorties],Tableau1[Mois],'Consommation mensuelle'!$A20,Tableau1[Destination des sorties],'Consommation mensuelle'!I$8)","v":0},{"$f":"SUMIFS(Tableau1[Sorties],Tableau1[Mois],'Consommation mensuelle'!$A20,Tableau1[Destination des sorties],'Consommation mensuelle'!J$8)","v":0},{"$f":"SUMIFS(Tableau1[Sorties],Tableau1[Mois],'Consommation mensuelle'!$A20,Tableau1[Destination des sorties],'Consommation mensuelle'!K$8)","v":0},{"$f":"SUM(B20:K20)","v":0}]
["Total",{"$f":"SUM(B9:B20)","v":0},{"$f":"SUM(C9:C20)","v":0},0,0,0,0,0,{"$f":"SUM(I9:I20)","v":0},{"$f":"SUM(J9:J20)","v":0},0,0]
[]
["Stock disponible",{"$f":"Tableau1[[#Totals],[Entrées]]-Tableau1[[#Totals],[Sorties]]","v":0}]
[]
[]
[null,null,null,null,"Signé par :"]
[]
[null,null,null,null,"Qualité :"]

{"sheet":"Commande","index":4,"n_rows":32,"n_cols":12,"rows_kept":32,"cut":false,"hidden":false,"merged":[[26,1,26,2],[26,7,26,8],[25,1,25,2]]}
[]
["Section",{"$f":"IF('Suivi du stock'!B2<>\"\",'Suivi du stock'!B2,\"\")","v":""}]
["Année",{"$f":"IF('Suivi du stock'!B3<>\"\",'Suivi du stock'!B3,\"\")","v":""}]
[]
[]
[]
[null,null,null,"Commande de préservatifs pour le trimestre :",null,null,null,2,"Année:  ",{"$f":"IF('Suivi du stock'!B3<>\"\",'Suivi du stock'!B3,\"\")","v":""}]
[]
[]
["Consommation précédente :",null,null,"Trimestre: ",{"$f":"IF(H7<>\"\",H7-1,\"\")","v":1}]
[]
[]
[null,"PPF","PPM","PPO","PPR","PPMig","UDI","PVVIH","Jeunes","GP","Autres","Total"]
[{"$f":"INDEX(Feuil2!G6:H17,Feuil2!$K$4,1)","v":"Janvier"},{"$f":"SUMIFS(Tableau1[Sorties],Tableau1[Mois],Commande!$A14,Tableau1[Destination des sorties],Commande!B$13)","v":0},{"$f":"SUMIFS(Tableau1[Sorties],Tableau1[Mois],Commande!$A14,Tableau1[Destination des sorties],Commande!C$13)","v":0},{"$f":"SUMIFS(Tableau1[Sorties],Tableau1[Mois],Commande!$A14,Tableau1[Destination des sorties],Commande!D$13)","v":0},{"$f":"SUMIFS(Tableau1[Sorties],Tableau1[Mois],Commande!$A14,Tableau1[Destination des sorties],Commande!E$13)","v":0},{"$f":"SUMIFS(Tableau1[Sorties],Tableau1[Mois],Commande!$A14,Tableau1[Destination des sorties],Commande!F$13)","v":0},{"$f":"SUMIFS(Tableau1[Sorties],Tableau1[Mois],Commande!$A14,Tableau1[Destination des sorties],Commande!G$13)","v":0},{"$f":"SUMIFS(Tableau1[Sorties],Tableau1[Mois],Commande!$A14,Tableau1[Destination des sorties],Commande!H$13)","v":0},{"$f":"SUMIFS(Tableau1[Sorties],Tableau1[Mois],Commande!$A14,Tableau1[Destination des sorties],Commande!I$13)","v":0},{"$f":"SUMIFS(Tableau1[Sorties],Tableau1[Mois],Commande!$A14,Tableau1[Destination des sorties],Commande!J$13)","v":0},{"$f":"SUMIFS(Tableau1[Sorties],Tableau1[Mois],Commande!$A14,Tableau1[Destination des sorties],Commande!K$13)","v":0},{"$f":"SUM(B14:K14)","v":0}]
[{"$f":"INDEX(Feuil2!G7:H18,Feuil2!$K$4,1)","v":"Février"},{"$f":"SUMIFS(Tableau1[Sorties],Tableau1[Mois],Commande!$A15,Tableau1[Destination des sorties],Commande!B$13)","v":0},{"$f":"SUMIFS(Tableau1[Sorties],Tableau1[Mois],Commande!$A15,Tableau1[Destination des sorties],Commande!C$13)","v":0},{"$f":"SUMIFS(Tableau1[Sorties],Tableau1[Mois],Commande!$A15,Tableau1[Destination des sorties],Commande!D$13)","v":0},{"$f":"SUMIFS(Tableau1[Sorties],Tableau1[Mois],Commande!$A15,Tableau1[Destination des sorties],Commande!E$13)","v":0},{"$f":"SUMIFS(Tableau1[Sorties],Tableau1[Mois],Commande!$A15,Tableau1[Destination des sorties],Commande!F$13)","v":0},{"$f":"SUMIFS(Tableau1[Sorties],Tableau1[Mois],Commande!$A15,Tableau1[Destination des sorties],Commande!G$13)","v":0},{"$f":"SUMIFS(Tableau1[Sorties],Tableau1[Mois],Commande!$A15,Tableau1[Destination des sorties],Commande!H$13)","v":0},{"$f":"SUMIFS(Tableau1[Sorties],Tableau1[Mois],Commande!$A15,Tableau1[Destination des sorties],Commande!I$13)","v":0},{"$f":"SUMIFS(Tableau1[Sorties],Tableau1[Mois],Commande!$A15,Tableau1[Destination des sorties],Commande!J$13)","v":0},{"$f":"SUMIFS(Tableau1[Sorties],Tableau1[Mois],Commande!$A15,Tableau1[Destination des sorties],Commande!K$13)","v":0},0]
[{"$f":"INDEX(Feuil2!G8:H19,Feuil2!$K$4,1)","v":"Mars"},{"$f":"SUMIFS(Tableau1[Sorties],Tableau1[Mois],Commande!$A16,Tableau1[Destination des sorties],Commande!B$13)","v":0},{"$f":"SUMIFS(Tableau1[Sorties],Tableau1[Mois],Commande!$A16,Tableau1[Destination des sorties],Commande!C$13)","v":0},{"$f":"SUMIFS(Tableau1[Sorties],Tableau1[Mois],Commande!$A16,Tableau1[Destination des sorties],Commande!D$13)","v":0},{"$f":"SUMIFS(Tableau1[Sorties],Tableau1[Mois],Commande!$A16,Tableau1[Destination des sorties],Commande!E$13)","v":0},{"$f":"SUMIFS(Tableau1[Sorties],Tableau1[Mois],Commande!$A16,Tableau1[Destination des sorties],Commande!F$13)","v":0},{"$f":"SUMIFS(Tableau1[Sorties],Tableau1[Mois],Commande!$A16,Tableau1[Destination des sorties],Commande!G$13)","v":0},{"$f":"SUMIFS(Tableau1[Sorties],Tableau1[Mois],Commande!$A16,Tableau1[Destination des sorties],Commande!H$13)","v":0},{"$f":"SUMIFS(Tableau1[Sorties],Tableau1[Mois],Commande!$A16,Tableau1[Destination des sorties],Commande!I$13)","v":0},{"$f":"SUMIFS(Tableau1[Sorties],Tableau1[Mois],Commande!$A16,Tableau1[Destination des sorties],Commande!J$13)","v":0},{"$f":"SUMIFS(Tableau1[Sorties],Tableau1[Mois],Commande!$A16,Tableau1[Destination des sorties],Commande!K$13)","v":0},0]
["Total",{"$f":"SUM(B14:B16)","v":0},{"$f":"SUM(C14:C16)","v":0},0,0,0,0,0,{"$f":"SUM(I14:I16)","v":0},{"$f":"SUM(J14:J16)","v":0},{"$f":"SUM(K14:K16)","v":0},0]
[]
[]
["Commande pour :",null,null,"Trimestre ",{"$f":"IF(AND(E10<>4,E10<>\"\"),E10+1,1)","v":2},{"$f":"IF(E20=1,J7+1,\"\")","v":""}]
[]
[null,"PPF","PPM","PPO","PPR","PPMig","UDI","PVVIH","Jeunes","GP","Autres","Total"]
["Contacts prévus*",{"$f":"IF($E$20<>1,OFFSET(Objectifs!$B$6:$K$9,$E$20,0,1,10),OFFSET(Objectifs!$B$6:$K$9,5,0,1,10))","v":0},{"$f":"IF($E$20<>1,OFFSET(Objectifs!$B$6:$K$9,$E$20,0,1,10),OFFSET(Objectifs!$B$6:$K$9,5,0,1,10))","v":0},{"$f":"IF($E$20<>1,OFFSET(Objectifs!$B$6:$K$9,$E$20,0,1,10),OFFSET(Objectifs!$B$6:$K$9,5,0,1,10))","v":0},{"$f":"IF($E$20<>1,OFFSET(Objectifs!$B$6:$K$9,$E$20,0,1,10),OFFSET(Objectifs!$B$6:$K$9,5,0,1,10))","v":0},{"$f":"IF($E$20<>1,OFFSET(Objectifs!$B$6:$K$9,$E$20,0,1,10),OFFSET(Objectifs!$B$6:$K$9,5,0,1,10))","v":0},{"$f":"IF($E$20<>1,OFFSET(Objectifs!$B$6:$K$9,$E$20,0,1,10),OFFSET(Objectifs!$B$6:$K$9,5,0,1,10))","v":0},{"$f":"IF($E$20<>1,OFFSET(Objectifs!$B$6:$K$9,$E$20,0,1,10),OFFSET(Objectifs!$B$6:$K$9,5,0,1,10))","v":0},{"$f":"IF($E$20<>1,OFFSET(Objectifs!$B$6:$K$9,$E$20,0,1,10),OFFSET(Objectifs!$B$6:$K$9,5,0,1,10))","v":0},{"$f":"IF($E$20<>1,OFFSET(Objectifs!$B$6:$K$9,$E$20,0,1,10),OFFSET(Objectifs!$B$6:$K$9,5,0,1,10))","v":0},{"$f":"IF($E$20<>1,OFFSET(Objectifs!$B$6:$K$9,$E$20,0,1,10),OFFSET(Objectifs!$B$6:$K$9,5,0,1,10))","v":0},{"$f":"SUM(B23:K23)","v":0}]
["Préservatifs par contact",10,10,10,10,10,10,20,5,5,5]
["Préservatifs nécessaires",{"$f":"B23*B24","v":0},0,0,0,0,0,0,0,0,0,{"$f":"SUM(B25:K25)","v":0}]
["Stock disponible",{"$f":"Tableau1[[#Totals],[Entrées]]-Tableau1[[#Totals],[Sorties]]","v":0}]
[null,null,null,null,null,"Quantié commadée",null,{"$f":"ROUND(L25*4/3-B26,0)","v":0}]
["* Les contacts prévus sont ceux prévus par le plan d'action"]
[]
[null,null,null,null,"Signé par :"]
[]
[null,null,null,null,"Qualité :"]

{"sheet":"Objectifs","index":5,"n_rows":11,"n_cols":12,"rows_kept":11,"cut":false,"hidden":false,"merged":[]}
[]
["Section",{"$f":"IF('Suivi du stock'!B2<>\"\",'Suivi du stock'!B2,\"\")","v":""}]
["Année",{"$f":"IF('Suivi du stock'!B3<>\"\",'Suivi du stock'!B3,\"\")","v":""}]
[null,null,null,"Objectifs fixés en matière de contacts avec les populations clés."]
[]
[null,"PPF","PPM","PPO","PPR","PPMig","UDI","PVVIH","Jeunes","GP","Autres","Total"]
["Trimestre 1",null,null,null,null,null,null,null,null,null,null,{"$f":"SUM(B7:K7)","v":0}]
["Trimestre 2",null,null,null,null,null,null,null,null,null,null,{"$f":"SUM(B8:K8)","v":0}]
["Trimestre 3",null,null,null,null,null,null,null,null,null,null,{"$f":"SUM(B9:K9)","v":0}]
["Trimestre 4",null,null,null,null,null,null,null,null,null,null,0]
["Trimestre 1\n (année prochaine)",null,null,null,null,null,null,null,null,null,null,0]